bitfinex-derivatives/quotes_BTCF0:USTF0_20250814
["timestamp","ask_amount","ask_price","bid_price","bid_amount"]
[1755191737753,1.09293369,117860.0,117850.0,0.002]
[1755191741548,1.01678922,117860.0,117850.0,0.002]
[1755191742463,0.2886508,117830.0,117820.0,0.2865389]
[1755191742758,1.34883693,117830.0,117820.0,0.1218633]
[1755191743060,1.34883693,117830.0,117820.0,0.9958233]
[1755191743559,1.34883693,117830.0,117820.0,1.0500633]
[1755191743751,1.35083693,117830.0,117820.0,1.0550633]
[1755191743953,1.38477866,117830.0,117820.0,1.0550633]
[1755191744459,1.38377866,117830.0,117820.0,1.0530633]
[1755191744660,1.38377866,117830.0,117820.0,1.0540633]
[1755191744851,1.34983693,117830.0,117820.0,0.9998233]
[1755191745254,1.34983693,117830.0,117820.0,0.9997033]
[1755191745563,0.83167613,117830.0,117820.0,1.76245222]
[1755191745863,0.7706,117830.0,117820.0,1.76245222]
[1755191746357,0.7706,117830.0,117820.0,1.76165222]
[1755191746560,0.3618,117830.0,117820.0,1.76245222]
[1755191746754,0.001,117830.0,117820.0,2.49299622]
[1755191746950,0.001,117830.0,117820.0,2.13219622]
[1755191747553,0.001,117830.0,117820.0,1.76165222]
[1755191747762,0.48347,117830.0,117820.0,1.76165222]
[1755191747949,0.64687,117830.0,117820.0,1.76165222]
[1755191748472,0.9279606,117830.0,117820.0,1.0067033]
[1755191748872,0.9279606,117830.0,117820.0,1.0529433]
[1755191749069,0.9279606,117830.0,117820.0,1.0067033]
[1755191749372,0.84313,117830.0,117820.0,1.0067033]
[1755191749578,0.3618,117830.0,117820.0,1.76165222]
[1755191749780,0.3618,117830.0,117820.0,1.0529433]
[1755191750074,0.98903673,117830.0,117820.0,1.0529433]
[1755191750773,1.03465635,117830.0,117820.0,1.0529433]
[1755191750964,0.94982575,117830.0,117820.0,1.0529433]
[1755191751166,1.03465635,117830.0,117820.0,1.0529433]
[1755191752670,0.9279606,117830.0,117820.0,1.0529433]
[1755191753071,1.00419865,117830.0,117820.0,1.0067033]
[1755191753473,1.00419865,117830.0,117820.0,0.9616733]
[1755191753679,1.00419865,117830.0,117820.0,0.9611133]
[1755191753878,1.00499865,117830.0,117820.0,0.9611178]
[1755191754475,0.9287606,117830.0,117820.0,0.9611178]
[1755191754880,1.7985792,117830.0,117820.0,0.003]
[1755191755180,1.8290369,117830.0,117820.0,0.003]
[1755191755383,2.7022369,117830.0,117820.0,0.003]
[1755191755779,0.2744578,117820.0,117810.0,0.8732]
[1755191755975,1.04778539,117820.0,117810.0,0.958045]
[1755191756177,1.04778539,117820.0,117810.0,0.8732]
[1755191756376,1.01718414,117820.0,117810.0,0.8732]
[1755191756681,1.72589306,117820.0,117810.0,0.8732]
[1755191757077,0.94208964,117820.0,117810.0,0.960045]
[1755191757282,1.01814408,117820.0,117810.0,0.960045]
[1755191757474,1.01814408,117820.0,117810.0,0.964045]
[1755191757673,1.01914408,117820.0,117810.0,0.964045]
[1755191757883,1.01914408,117820.0,117810.0,0.8792]
[1755191758782,1.01914408,117820.0,117810.0,0.9640451]
[1755191758981,1.01914408,117820.0,117810.0,0.9720451]
[1755191760180,1.01914408,117820.0,117810.0,1.0039351]
[1755191760577,1.01914408,117820.0,117810.0,1.0501751]
[1755191760578,0.93430628,117820.0,117810.0,1.0501751]
[1755191760772,0.69357184,117820.0,117810.0,1.75888402]
[1755191761178,0.94308964,117820.0,117810.0,1.0039351]
[1755191761382,1.01914408,117820.0,117810.0,0.9717251]
[1755191761579,1.01914408,117820.0,117810.0,0.9956151]
[1755191761780,1.01914408,117820.0,117810.0,1.0036151]
[1755191762181,1.01914408,117820.0,117810.0,0.9637251]
[1755191762689,1.01914408,117820.0,117810.0,0.9717251]
[1755191762891,1.75849431,117820.0,117810.0,0.006]
[1755191763081,1.84337314,117820.0,117810.0,0.006]
[1755191763391,0.561305,117810.0,117800.0,0.9576493]
[1755191763586,1.02844678,117810.0,117800.0,0.9656493]
[1755191763778,1.02844678,117810.0,117800.0,0.8808]
[1755191764387,1.63081392,117810.0,117800.0,0.8808]
[1755191764688,1.77335127,117810.0,117800.0,0.8848]
[1755191764891,1.85823731,117810.0,117800.0,0.8768]
[1755191765384,1.14952839,117810.0,117800.0,0.004]
[1755191765591,0.5613194,117790.0,117780.0,0.5315586]
[1755191765791,1.35886292,117790.0,117780.0,1.1412586]
[1755191766093,1.35886292,117790.0,117780.0,0.92529]
[1755191766780,1.2829194,117790.0,117780.0,0.91729]
[1755191767085,1.2909194,117790.0,117780.0,0.001]
[1755191767288,2.08452877,117790.0,117780.0,0.001]
[1755191767587,2.08452877,117790.0,117780.0,0.9983166]
[1755191767588,1.59019407,117790.0,117780.0,0.9983166]
[1755191767787,1.48387314,117790.0,117780.0,0.9983166]
[1755191767988,1.48387314,117790.0,117780.0,0.91345]
[1755191768386,1.48387314,117790.0,117780.0,0.9983166]
[1755191768784,1.48287314,117790.0,117780.0,1.0111166]
[1755191768991,0.99273832,117790.0,117780.0,1.76606552]
[1755191769186,1.15741832,117790.0,117780.0,1.76606552]
[1755191769380,1.22977832,117790.0,117780.0,1.0573566]
[1755191769581,1.23077832,117790.0,117780.0,1.0573566]
[1755191769781,1.23077832,117790.0,117780.0,1.76606552]
[1755191769782,0.99373832,117790.0,117780.0,1.76606552]
[1755191770088,1.01167928,117790.0,117780.0,1.76606552]
[1755191770285,1.06147928,117790.0,117780.0,1.76606552]
[1755191770479,1.06247928,117790.0,117780.0,1.76506552]
[1755191770688,1.01267928,117790.0,117780.0,1.76586552]
[1755191771194,0.90339425,117790.0,117780.0,1.76586552]
[1755191771791,0.79434096,117790.0,117780.0,1.76586552]
[1755191771982,0.14866278,117790.0,117780.0,1.76586552]
[1755191772183,0.06691168,117790.0,117780.0,3.20517444]
[1755191772382,0.06791168,117790.0,117780.0,3.20517444]
[1755191772893,0.001,117790.0,117780.0,3.20517444]
[1755191773680,0.001,117790.0,117780.0,1.7877566]
[1755191773887,0.001,117790.0,117780.0,2.49646552]
[1755191774291,0.06917541,117790.0,117780.0,2.49646552]
[1755191775182,0.07936147,117800.0,117780.0,3.32066304]
[1755191775382,0.06075935,117800.0,117790.0,1.04894192]
[1755191775788,0.06075935,117800.0,117790.0,1.21872592]
[1755191775992,0.42959184,117820.0,117800.0,0.3394041]
[1755191776192,0.06879184,117820.0,117810.0,1.66567392]
[1755191776594,0.06879184,117820.0,117810.0,1.66167392]
[1755191777393,0.46708503,117830.0,117820.0,0.0848378]
[1755191777599,0.4106,117840.0,117830.0,0.254479]
[1755191777799,0.4106,117840.0,117830.0,1.83518792]
[1755191778001,0.3608,117840.0,117830.0,2.00491592]
[1755191778299,0.3608,117840.0,117830.0,2.00291592]
[1755191778493,0.4106,117840.0,117830.0,2.00291592]
[1755191778696,0.4106,117840.0,117830.0,1.83318792]
[1755191778898,0.4116,117840.0,117830.0,1.83718792]
[1755191779097,0.4116,117840.0,117830.0,1.83618792]
[1755191779401,0.51788503,117840.0,117830.0,1.83618792]
[1755191779598,0.10728503,117840.0,117830.0,1.98552704]
[1755191779992,0.10728503,117840.0,117830.0,1.98752704]
[1755191780193,0.10828503,117840.0,117830.0,2.01092022]
[1755191780501,0.15808503,117840.0,117830.0,2.01092022]
[1755191780693,0.0518,117840.0,117830.0,1.84119222]
[1755191781490,0.12016356,117840.0,117830.0,1.84119222]
[1755191781797,0.22683053,117840.0,117830.0,1.84119222]
[1755191782097,0.12016356,117840.0,117830.0,1.84119222]
[1755191782801,0.19634912,117840.0,117830.0,1.84119222]
[1755191782999,0.14654912,117840.0,117830.0,1.84119222]
[1755191783202,0.07036356,117840.0,117830.0,1.84119222]
[1755191784094,0.14650061,117840.0,117830.0,1.84119222]
[1755191784800,0.12031356,117840.0,117830.0,1.84119222]
[1755191785001,0.19645061,117840.0,117830.0,1.84119222]
[1755191785201,0.12031356,117840.0,117830.0,1.84119222]
[1755191785404,0.91086356,117840.0,117830.0,1.84055222]
[1755191785598,0.99568696,117840.0,117830.0,1.84055222]
[1755191785798,0.99568696,117840.0,117830.0,0.96919222]
[1755191786200,1.07182401,117840.0,117830.0,1.84051222]
[1755191786397,0.16938356,117840.0,117830.0,1.84051222]
[1755191786598,0.07036356,117840.0,117830.0,2.20131222]
[1755191786793,0.07036356,117840.0,117830.0,1.84051222]
[1755191786998,0.002,117840.0,117830.0,2.20131222]
[1755191787399,0.06285037,117840.0,117830.0,2.20131222]
[1755191788797,0.002,117840.0,117830.0,2.20131222]
[1755191789503,0.002,117840.0,117830.0,2.63394022]
[1755191789710,0.002,117840.0,117830.0,2.46421222]
[1755191791102,1e-07,117840.0,117830.0,2.63394022]
[1755191791306,0.48688705,117860.0,117840.0,0.2544657]
[1755191791606,0.48688705,117860.0,117850.0,1.66440522]
[1755191791993,0.72372705,117860.0,117850.0,1.66440522]
[1755191792306,0.77279705,117860.0,117850.0,1.66440522]
[1755191792506,0.77379705,117860.0,117850.0,1.66440522]
[1755191792909,0.80577705,117860.0,117850.0,1.66440522]
[1755191793099,0.80677705,117860.0,117850.0,1.93130522]
[1755191793503,0.91763705,117860.0,117850.0,1.93230522]
[1755191794305,1.00244615,117860.0,117850.0,1.93230522]
[1755191794707,0.91763705,117860.0,117850.0,1.93230522]
[1755191795706,1.00244615,117860.0,117850.0,1.93230522]
[1755191795906,1.00244615,117860.0,117850.0,1.93198522]
[1755191796106,1.00244615,117860.0,117850.0,0.3527163]
[1755191796501,1.00244615,117860.0,117850.0,1.2231163]
[1755191796700,1.00244615,117860.0,117850.0,0.3527163]
[1755191796905,0.9263091,117860.0,117850.0,0.3527163]
[1755191797214,0.9263091,117860.0,117850.0,1.2230763]
[1755191797415,1.03297607,117860.0,117850.0,1.2230763]
[1755191797910,0.94816697,117860.0,117850.0,1.93178522]
[1755191798111,0.9263091,117860.0,117850.0,1.93178522]
[1755191798514,1.03297607,117860.0,117850.0,1.93178522]
[1755191799115,1.03297607,117860.0,117850.0,1.66888522]
[1755191799409,0.9263091,117860.0,117850.0,1.66888522]
[1755191799603,0.9271091,117860.0,117850.0,0.005]
[1755191799811,0.9271091,117860.0,117850.0,0.9600165]
[1755191800111,0.5645165,117850.0,117840.0,0.5173657]
[1755191800408,1.03186905,117850.0,117840.0,0.2629]
[1755191800613,1.02055688,117850.0,117840.0,1.13302]
[1755191800815,0.94444792,117850.0,117840.0,1.2178437]
[1755191801415,1.05100047,117850.0,117840.0,0.2629]
[1755191801615,1.05180047,117850.0,117840.0,0.24251154]
[1755191801915,0.5645311,117830.0,117820.0,0.96321912]
[1755191802116,0.9253311,117830.0,117820.0,1.1244702]
[1755191802711,0.9253311,117830.0,117820.0,1.83317912]
[1755191803209,0.8435,117830.0,117820.0,1.84017912]
[1755191803713,0.91964767,117830.0,117820.0,1.84017912]
[1755191805008,0.21114767,117830.0,117820.0,1.84017912]
[1755191805212,0.12709767,117830.0,117820.0,1.83617912]
[1755191805413,0.05195,117830.0,117820.0,1.83817912]
[1755191805608,0.10855255,117830.0,117820.0,1.83897912]
[1755191805809,0.18480775,117830.0,117820.0,1.83897912]
[1755191806011,0.002,117830.0,117820.0,2.19977912]
[1755191807110,0.002,117830.0,117820.0,2.19897912]
[1755191807502,0.15850255,117830.0,117820.0,2.19897912]
[1755191807908,0.05195,117830.0,117820.0,2.19897912]
[1755191808107,0.12826246,117830.0,117820.0,2.19897912]
[1755191809419,0.05195,117830.0,117820.0,2.19897912]
[1755191810010,0.17295401,117840.0,117830.0,0.0848313]
[1755191810212,0.22290401,117840.0,117830.0,0.79354022]
[1755191810513,1.09827811,117840.0,117830.0,0.79354022]
[1755191810807,0.73747811,117840.0,117830.0,1.90533176]
[1755191811315,0.65265401,117840.0,117830.0,1.90533176]
[1755191811507,0.22290401,117840.0,117830.0,1.90533176]
[1755191811713,0.22390401,117840.0,117830.0,1.90633176]
[1755191812015,0.10687087,117840.0,117830.0,3.14849848]
[1755191812232,0.04995,117850.0,117840.0,0.0848241]
[1755191812410,0.04995,117850.0,117840.0,0.79353302]
[1755191812814,0.24776679,117850.0,117840.0,0.63299783]
[1755191813124,0.24776679,117850.0,117840.0,0.60539258]
[1755191813420,0.24776679,117850.0,117840.0,0.60639258]
[1755191813616,0.40042222,117850.0,117840.0,0.60639258]
[1755191813820,0.47036354,117850.0,117840.0,0.60939258]
[1755191814124,0.27254675,117850.0,117840.0,0.60939258]
[1755191814319,0.95305675,117850.0,117840.0,0.79753302]
[1755191814620,0.91478132,117850.0,117840.0,1.66637302]
[1755191815124,0.55398132,117850.0,117840.0,1.66637302]
[1755191815721,0.27156132,117850.0,117840.0,1.66637302]
[1755191816219,0.63879822,117850.0,117840.0,1.66637302]
[1755191816411,0.55398132,117850.0,117840.0,1.66637302]
[1755191816607,0.55398132,117850.0,117840.0,1.90888456]
[1755191817217,0.99959822,117850.0,117840.0,1.90888456]
[1755191817922,0.91478132,117850.0,117840.0,1.90888456]
[1755191818107,0.99959822,117850.0,117840.0,1.04004456]
[1755191818306,0.99959822,117850.0,117840.0,1.19981564]
[1755191818518,1.00039822,117850.0,117840.0,0.33133564]
[1755191818713,1.00039822,117850.0,117840.0,1.19977564]
[1755191819212,1.00039822,117850.0,117840.0,1.11495154]
[1755191819613,0.9314569,117850.0,117840.0,0.24651154]
[1755191820024,0.9314569,117850.0,117840.0,1.11483154]
[1755191820320,0.9314569,117850.0,117840.0,1.06683558]
[1755191820521,0.9306569,117850.0,117840.0,1.15165968]
[1755191820716,1.08330836,117850.0,117840.0,1.8603686]
[1755191820927,1.08330836,117850.0,117840.0,1.66185302]
[1755191821822,1.08330836,117850.0,117840.0,0.9531441]
[1755191822009,1.08330836,117850.0,117840.0,0.86832]
[1755191822208,1.08330836,117850.0,117840.0,0.9531441]
[1755191822419,1.08330836,117850.0,117840.0,0.83846634]
[1755191822723,1.19016362,117850.0,117840.0,0.83846634]
[1755191822924,1.19016362,117850.0,117840.0,0.75364224]
[1755191823119,0.2776541,117840.0,117830.0,0.0848278]
[1755191823319,1.00542223,117840.0,117830.0,0.9528713]
[1755191823526,1.03594936,117840.0,117830.0,0.86804]
[1755191824022,0.48347,117830.0,117820.0,1.08601611]
[1755191824324,0.92060276,117830.0,117820.0,1.95393611]
[1755191825325,0.92160276,117830.0,117820.0,1.95593611]
[1755191826125,1.00743406,117830.0,117820.0,1.95793611]
[1755191826422,1.00743406,117830.0,117820.0,0.21163219]
[1755191826628,1.00743406,117830.0,117820.0,1.07935219]
[1755191827117,0.90734114,117830.0,117820.0,1.07935219]
[1755191827317,0.99217244,117830.0,117820.0,1.78806111]
[1755191827623,0.90734114,117830.0,117820.0,1.78806111]
[1755191828419,0.11245114,117830.0,117820.0,1.78806111]
[1755191828618,0.05138,117830.0,117820.0,2.14966111]
[1755191829013,0.05138,117830.0,117820.0,1.78806111]
[1755191829416,0.07833893,117830.0,117820.0,2.14966111]
[1755191830022,0.07833893,117830.0,117820.0,2.14886111]
[1755191830218,0.40538023,117830.0,117820.0,1.28114111]
[1755191830412,0.64664023,117830.0,117820.0,2.14846111]
[1755191830616,0.56180893,117830.0,117820.0,2.14846111]
[1755191831330,0.12771893,117830.0,117820.0,2.14846111]
[1755191831521,0.07833893,117830.0,117820.0,2.11050032]
[1755191831716,0.21255023,117830.0,117820.0,1.0409914]
[1755191831922,0.45381023,117830.0,117820.0,1.74970032]
[1755191832125,0.50126023,117830.0,117820.0,1.74970032]
[1755191832426,0.64664023,117830.0,117820.0,0.1736714]
[1755191832626,1.00744023,117830.0,117820.0,1.0407914]
[1755191832828,0.9311013,117830.0,117820.0,1.0407914]
[1755191833337,0.9311013,117830.0,117820.0,0.9559539]
[1755191833626,0.9311013,117830.0,117820.0,0.0888339]
[1755191833828,0.9311013,117830.0,117820.0,0.871]
[1755191834827,0.9311013,117830.0,117820.0,0.9558385]
[1755191835027,0.9311013,117830.0,117820.0,1.66454742]
[1755191835530,1.00744978,117830.0,117820.0,1.66454742]
[1755191839625,0.76618978,117830.0,117820.0,1.66454742]
[1755191839929,1.00744978,117830.0,117820.0,1.66454742]
[1755191841428,0.57335978,117830.0,117820.0,1.66454742]
[1755191841933,0.48852848,117830.0,117820.0,1.66454742]
[1755191842122,0.07834848,117830.0,117820.0,2.02534742]
[1755191843030,0.12772848,117830.0,117820.0,2.02534742]
[1755191843232,0.21155928,117830.0,117820.0,1.66254742]
[1755191843532,0.21255928,117830.0,117820.0,1.66454742]
[1755191843722,0.12772848,117830.0,117820.0,1.66454742]
[1755191843919,0.12772848,117830.0,117820.0,1.66554742]
[1755191845530,0.12772848,117830.0,117820.0,2.02634742]
[1755191845928,0.05138,117830.0,117820.0,2.02634742]
[1755191846523,0.12772848,117830.0,117820.0,2.02634742]
[1755191846718,0.07834848,117830.0,117820.0,2.02634742]
[1755191847830,0.12336848,117830.0,117820.0,1.66554742]
[1755191848032,0.64830878,117830.0,117820.0,1.66438742]
[1755191848225,0.56347848,117830.0,117820.0,1.66438742]
[1755191848426,0.56347848,117830.0,117820.0,2.02518742]
[1755191848827,0.20478848,117830.0,117820.0,2.02518742]
[1755191849334,0.12336848,117830.0,117820.0,2.28808742]
[1755191852435,0.12336848,117830.0,117820.0,1.92728742]
[1755191852621,0.04702,117830.0,117820.0,1.92728742]
[1755191852827,0.15387526,117830.0,117820.0,2.28808742]
[1755191854028,0.04702,117830.0,117820.0,2.28808742]
[1755191854229,0.23878187,117830.0,117820.0,1.92728742]
[1755191854524,0.93356,117830.0,117820.0,1.06144742]
[1755191854726,1.08621146,117830.0,117820.0,1.01825459]
[1755191855037,0.5707672,117820.0,117810.0,0.28412527]
[1755191855330,0.5707672,117820.0,117810.0,1.14912527]
[1755191855331,0.9315672,117820.0,117810.0,1.14912527]
[1755191855932,0.9315672,117820.0,117810.0,0.97943467]
[1755191856236,0.5699744,117810.0,117800.0,1.4288736]
[1755191856433,1.03771626,117810.0,117800.0,2.1240512]
[1755191856629,1.03851626,117810.0,117800.0,1.17432]
[1755191856831,1.03851626,117810.0,117800.0,2.03916]
[1755191857030,0.9315744,117810.0,117800.0,1.17432]
[1755191857333,0.9315744,117810.0,117800.0,2.03912]
[1755191857537,0.9307744,117810.0,117800.0,2.1239711]
[1755191858035,0.9307744,117810.0,117800.0,1.2591711]
[1755191858232,0.9315744,117810.0,117800.0,2.03912]
[1755191858439,0.9315744,117810.0,117800.0,2.1239711]
[1755191859135,0.9317744,117810.0,117800.0,2.1249711]
[1755191859337,0.9317744,117810.0,117800.0,2.83368002]
[1755191859535,1.03866849,117810.0,117800.0,1.17532]
[1755191859734,1.04146849,117810.0,117800.0,2.03992]
[1755191860036,0.9365744,117810.0,117800.0,2.03992]
[1755191861134,0.9365744,117810.0,117800.0,2.124771]
[1755191861334,0.9357744,117810.0,117800.0,2.83347992]
[1755191862433,0.9357744,117810.0,117800.0,1.17532]
[1755191862635,0.9357744,117810.0,117800.0,2.0398]
[1755191862834,1.01209399,117810.0,117800.0,2.0194071]
[1755191863135,1.01209399,117810.0,117800.0,2.1042577]
[1755191864940,1.01209399,117810.0,117800.0,2.81296662]
[1755191865639,0.99681296,117810.0,117800.0,2.81296662]
[1755191866839,0.9357744,117810.0,117800.0,2.0190471]
[1755191867037,0.9357744,117810.0,117800.0,1.1549271]
[1755191867239,0.99680712,117810.0,117800.0,2.0188871]
[1755191867634,0.99680712,117810.0,117800.0,0.86496]
[1755191869844,1.72080291,117810.0,117800.0,0.86496]
[1755191870045,0.2820774,117790.0,117780.0,0.21769049]
[1755191870243,0.9307874,117790.0,117780.0,0.0848646]
[1755191870438,0.9307874,117790.0,117780.0,0.9485046]
[1755191871344,0.9307874,117790.0,117770.0,0.98843868]
[1755191871640,0.9307947,117780.0,117770.0,0.1697394]
[1755191871845,0.9307947,117780.0,117770.0,1.0332994]
[1755191873640,0.9307947,117780.0,117770.0,0.0858684]
[1755191873846,0.9317947,117780.0,117770.0,0.9493884]
[1755191874939,0.9327947,117780.0,117770.0,0.9493884]
[1755191876044,0.9327947,117780.0,117770.0,1.65809732]
[1755191876045,0.6899047,117780.0,117770.0,1.65809732]
[1755191876248,0.6899046,117780.0,117770.0,1.65809732]
[1755191876737,0.60504,117780.0,117770.0,1.65809732]
[1755191876943,0.4926846,117780.0,117770.0,1.65809732]
[1755191877143,0.9325146,117780.0,117770.0,1.65765732]
[1755191878647,0.5717146,117780.0,117770.0,1.65765732]
[1755191879546,0.5717146,117780.0,117770.0,0.9489484]
[1755191879749,0.9325146,117780.0,117770.0,1.65765732]
[1755191880747,1.00883419,117780.0,117770.0,1.65765732]
[1755191882048,0.9325146,117780.0,117770.0,1.65765732]
[1755191882850,0.9325146,117780.0,117770.0,1.65697732]
[1755191883353,0.6851346,117780.0,117770.0,1.65697732]
[1755191883548,0.74606772,117780.0,117770.0,1.65697732]
[1755191884353,0.66120312,117780.0,117770.0,1.65697732]
[1755191884752,0.74606752,117780.0,117770.0,1.65697732]
[1755191884952,0.99344752,117780.0,117770.0,1.65697732]
[1755191885348,0.9325144,117780.0,117770.0,0.9482684]
[1755191886253,0.60027,117780.0,117770.0,1.65697732]
[1755191886453,0.6851345,117780.0,117770.0,1.65697732]
[1755191886654,0.9325145,117780.0,117770.0,1.65697732]
[1755191887553,0.84765,117780.0,117770.0,1.65697732]
[1755191887855,0.73598317,117780.0,117770.0,1.65697732]
[1755191888354,0.82084757,117780.0,117770.0,1.65697732]
[1755191888549,0.73598317,117780.0,117770.0,1.65697732]
[1755191888851,0.46872317,117780.0,117770.0,1.65697732]
[1755191889253,0.55358757,117780.0,117770.0,1.65697732]
[1755191889750,0.50856757,117780.0,117770.0,1.65697732]
[1755191889955,0.42370317,117780.0,117770.0,1.65697732]
[1755191890252,0.55610747,117780.0,117770.0,1.65697732]
[1755191890750,0.42370317,117780.0,117770.0,1.45309928]
[1755191890950,0.47124317,117780.0,117770.0,1.45309928]
[1755191891153,0.55610747,117780.0,117770.0,1.45309928]
[1755191891555,0.47124317,117780.0,117770.0,1.45309928]
[1755191892057,0.55610747,117780.0,117770.0,1.45309928]
[1755191892857,0.47124317,117780.0,117770.0,1.45309928]
[1755191893056,0.55610747,117780.0,117770.0,1.45309928]
[1755191894859,0.99593747,117780.0,117770.0,1.45309928]
[1755191895566,0.9350343,117780.0,117770.0,1.45165928]
[1755191896464,1.01135389,117780.0,117770.0,1.45165928]
[1755191898163,0.9350343,117780.0,117770.0,1.45165928]
[1755191898464,1.01135389,117780.0,117770.0,1.45165928]
[1755191898665,0.9350343,117780.0,117770.0,1.45165928]
[1755191898962,0.4952043,117780.0,117770.0,1.45165928]
[1755191899158,0.07631959,117790.0,117780.0,0.0848643]
[1755191899464,0.10684743,117810.0,117800.0,0.0848499]
[1755191899660,0.10684743,117810.0,117800.0,2.65691674]
[1755191899865,0.10684743,117810.0,117800.0,2.82669273]
[1755191900063,0.12577703,117820.0,117800.0,2.99638793]
[1755191900267,0.12577703,117820.0,117810.0,0.95047358]
[1755191900955,0.0189296,117820.0,117810.0,0.95047358]
[1755191901365,0.0189296,117820.0,117810.0,1.12103358]
[1755191901758,0.0189296,117820.0,117810.0,0.94747358]
[1755191901959,0.0664696,117820.0,117810.0,1.80751358]
[1755191902361,0.0674696,117820.0,117810.0,1.80851358]
[1755191902568,0.0684696,117820.0,117810.0,1.80951358]
[1755191902767,0.0684696,117820.0,117810.0,2.01413132]
[1755191903066,0.17531703,117820.0,117810.0,2.01413132]
[1755191903661,0.17531703,117820.0,117810.0,1.3046827]
[1755191903868,0.26015253,117820.0,117810.0,2.01413132]
[1755191904054,0.5625155,117820.0,117810.0,1.18958116]
[1755191904662,0.47768,117820.0,117810.0,1.18958116]
[1755191905167,0.47768,117820.0,117810.0,1.89902978]
[1755191905567,0.5625155,117820.0,117810.0,1.89902978]
[1755191906363,0.47768,117820.0,117810.0,1.89902978]
[1755191907067,0.5625155,117820.0,117810.0,1.89902978]
[1755191908270,0.63030708,117820.0,117810.0,1.89842978]
[1755191908470,0.70639767,117820.0,117810.0,1.18898116]
[1755191909971,0.62156217,117820.0,117810.0,1.18898116]
[1755191910575,0.70639767,117820.0,117810.0,1.18898116]
[1755191910970,0.70639767,117820.0,117810.0,0.32994116]
[1755191911272,1.77660053,117820.0,117810.0,0.9456027]
[1755191911477,0.99110708,117820.0,117810.0,0.9456027]
[1755191912568,0.82554708,117820.0,117810.0,0.9456027]
[1755191912868,0.53892962,117820.0,117810.0,1.65505132]
[1755191913265,0.62376512,117820.0,117810.0,1.65505132]
[1755191913575,1.04616512,117820.0,117810.0,0.9456027]
[1755191913973,1.04616512,117820.0,117810.0,0.0868427]
[1755191914370,1.75641374,117820.0,117810.0,0.86024]
[1755191915274,1.04696512,117820.0,117810.0,0.86024]
[1755191915466,1.75641374,117820.0,117810.0,0.86024]
[1755191915667,1.04696512,117820.0,117810.0,0.86024]
[1755191917676,1.71379209,117820.0,117810.0,0.8598]
[1755191917979,0.6769631,117800.0,117780.0,0.83307769]
[1755191918172,0.5072571,117790.0,117780.0,0.47227769]
[1755191918366,0.5072571,117790.0,117780.0,1.1971718]
[1755191918670,0.5531271,117790.0,117780.0,1.5579718]
[1755191918866,0.5531271,117790.0,117780.0,2.26742042]
[1755191919068,0.46827,117790.0,117780.0,2.26742042]
[1755191919278,0.46827,117790.0,117780.0,2.27542042]
[1755191919778,0.5531271,117790.0,117780.0,2.27542042]
[1755191920079,0.5541271,117790.0,117780.0,2.27542042]
[1755191920872,0.5541271,117790.0,117780.0,2.27242042]
[1755191921180,0.5551271,117790.0,117780.0,2.27442042]
[1755191921383,0.47027,117790.0,117780.0,2.27442042]
[1755191921572,0.46927,117790.0,117780.0,2.26942042]
[1755191921775,0.12817,117790.0,117780.0,2.27142042]
[1755191922078,0.18898689,117790.0,117780.0,2.27142042]
[1755191922578,0.27384399,117790.0,117780.0,2.27142042]
[1755191923180,0.18898689,117790.0,117780.0,2.27142042]
[1755191923686,0.27384399,117790.0,117780.0,2.27142042]
[1755191924379,0.18898689,117790.0,117780.0,2.27142042]
[1755191924578,0.27384399,117790.0,117780.0,2.27142042]
[1755191924973,0.61594399,117790.0,117780.0,2.27142042]
[1755191925172,0.61594399,117790.0,117780.0,1.5619718]
[1755191925676,0.61594399,117790.0,117780.0,0.7042518]
[1755191925982,0.61594399,117790.0,117780.0,1.5610118]
[1755191926683,0.61594399,117790.0,117780.0,2.06585635]
[1755191927080,0.61594399,117790.0,117780.0,1.030324]
[1755191927976,0.61594399,117790.0,117780.0,1.53516855]
[1755191928285,0.61594399,117790.0,117780.0,1.030324]
[1755191929281,0.61594399,117790.0,117780.0,0.173724]
[1755191929487,0.61594399,117790.0,117780.0,1.030084]
[1755191929676,0.61594399,117790.0,117780.0,0.173724]
[1755191930077,0.61594399,117790.0,117780.0,1.029964]
[1755191930886,0.61594399,117790.0,117780.0,1.53480855]
[1755191931076,0.61594399,117790.0,117780.0,1.029964]
[1755191931786,0.61594399,117790.0,117780.0,0.173724]
[1755191931990,0.97674399,117790.0,117780.0,1.53480855]
[1755191932181,0.97674399,117790.0,117780.0,1.029964]
[1755191932494,0.97674399,117790.0,117780.0,1.53480855]
[1755191932881,0.61594399,117790.0,117780.0,0.67856855]
[1755191933178,0.61594399,117790.0,117780.0,1.53440855]
[1755191933687,0.53108689,117790.0,117780.0,0.004]
[1755191933989,1.39673144,117790.0,117780.0,0.85976]
[1755191934390,1.4119121,117790.0,117780.0,0.85972]
[1755191935485,1.4119121,117790.0,117780.0,0.004]
[1755191935680,1.4119121,117790.0,117780.0,0.85952]
[1755191935884,1.33591455,117790.0,117780.0,0.85952]
[1755191936687,1.39675925,117790.0,117780.0,0.85952]
[1755191936888,1.33591455,117790.0,117780.0,0.85952]
[1755191937084,1.39675692,117790.0,117780.0,0.85952]
[1755191937792,1.4119121,117790.0,117780.0,0.85952]
[1755191938384,1.33591455,117790.0,117780.0,0.85952]
[1755191940393,0.83107,117790.0,117780.0,0.85952]
[1755191940794,0.93930707,117790.0,117780.0,0.85952]
[1755191941188,0.93974707,117790.0,117780.0,0.85952]
[1755191941389,0.83151,117790.0,117780.0,0.85952]
[1755191942000,0.83151,117790.0,117780.0,0.004]
[1755191942196,0.83151,117790.0,117780.0,0.85876]
[1755191942399,1.50615455,117790.0,117780.0,0.004]
[1755191942695,1.3001521,117790.0,117770.0,0.85468]
[1755191942902,1.44706198,117780.0,117770.0,0.85468]
[1755191943107,1.46603263,117780.0,117770.0,0.85468]
[1755191944102,1.46603263,117780.0,117770.0,0.85764]
[1755191944501,1.3591852,117780.0,117770.0,0.85764]
[1755191944693,1.3601852,117780.0,117770.0,0.85764]
[1755191945094,1.3601852,117780.0,117770.0,0.74289193]
[1755191945495,1.3591852,117780.0,117770.0,0.74289193]
[1755191945698,1.3621852,117780.0,117770.0,0.74389193]
[1755191946203,1.3601852,117780.0,117770.0,0.74289193]
[1755191946402,1.3621852,117780.0,117770.0,0.74289193]
[1755191946598,1.0764052,117780.0,117750.0,0.02191573]
[1755191946805,0.94192196,117770.0,117760.0,0.8606]
[1755191947198,1.44676651,117770.0,117760.0,0.8542]
[1755191947598,1.44676651,117770.0,117750.0,0.02158102]
[1755191947895,1.44676651,117770.0,117760.0,0.85408]
[1755191948094,0.04965,117750.0,117740.0,0.3672]
[1755191948391,0.28257747,117760.0,117750.0,0.004]
[1755191948697,0.28257747,117760.0,117750.0,0.0104]
[1755191948899,0.55068747,117760.0,117750.0,0.0104]
[1755191949396,0.5694335,117760.0,117750.0,0.0104]
[1755191949597,0.5694335,117760.0,117750.0,0.0064]